Workbook

Sheet MSU
B1: Kalle Kero | E1: 28.1.1994 Vaasa
B2: SUPERPESIS | E2: Runkosarja | I2: Kärkilyönnit (KL), pesänvälit | P2: Ylempi loppusarja | W2: Alempi loppusarja | AD2: Arvo-ottelut | AH2: Mitalit
B3: Vuosi | C3: Sija | D3: Seura | E3: OTT | F3: KUN | G3: LÖI | H3: TOI | I3: KL | J3: 0 > 1 | K3: 1 > 2 | L3: 2 > 3 | M3: 3 > k | N3: KL-% | P3: OTT | Q3: KUN | R3: LÖI | S3: TOI | T3: KL | U3: KL-% | W3: OTT | X3: KUN | Y3: LÖI | Z3: TOI | AA3: KL | AB3: KL-% | AD3: IL | AE3: LL | AF3: hSM | AG3: K | AH3: H | AI3: P
B4: 2009 | C4: 1. | D4: VM | F4: suomensarja
B5: 2010 | C5: 3. | D5: VäVi | F5: suomensarja
B6: 2010 | C6: 3. | D6: VM | F6: ykköspesis
B7: 2011 | C7: 4. | D7: VM | F7: suomensarja
B8: 2012 | C8: 1. | D8: VM | F8: suomensarja | O8: =PRODUCT(I8/N8) ->  | V8: =PRODUCT(P8/U8) ->  | AC8: =PRODUCT(W8/AB8) -> 
B9: 2012 | C9: 11. | D9: NJ | E9: 10 | F9: 1 | G9: 7 | H9: 2 | I9: 20 | J9: 0 | K9: 4 | L9: 8 | M9: 8 | N9: 40.8 % | O9: =PRODUCT(I9/N9) -> 49.01960784 | V9: =PRODUCT(P9/U9) ->  | W9: 1 | X9: 0 | Y9: 0 | Z9: 0 | AA9: 2 | AB9: 25.0 % | AC9: =PRODUCT(W9/AB9) -> 4
B10: 2013 | C10: 2. | D10: VM | F10: suomensarja | O10: 0 | V10: 0 | AC10: 0
B11: 2014 | C11: 3. | D11: VM | F11: suomensarja | O11: 0 | V11: 0 | AC11: 0
B12: 2015 | C12: 2. | D12: VM | F12: suomensarja
B13: 2016 | C13: 1. | D13: VäVi | F13: suomensarja
B14: 2017 | C14: 11. | D14: VäVi | F14: ykköspesis
B15: 2018 | C15: 7. | D15: VM | F15: suomensarja
B16: 2019
B17: 2020
B18: 2021
B19: 2022 | C19: 3. | D19: VM Jun | F19: suomensarja
B20: 2023 | C20: 3. | D20: VM Jun | F20: suomensarja
B21: Yhteensä | E21: =SUM(E5:E20) -> 10 | F21: 1 | G21: 7 | H21: 2 | I21: 20 | J21: 0 | K21: 4 | L21: 8 | M21: 8 | N21: =PRODUCT(I21/O21) -> 40.8 % | O21: =SUM(O9:O20) -> 49.01960784 | P21: =SUM(P5:P20) -> 0 | Q21: =SUM(Q5:Q20) -> 0 | R21: =SUM(R5:R20) -> 0 | S21: =SUM(S5:S20) -> 0 | T21: =SUM(T5:T20) -> 0 | U21: =PRODUCT(P21/W21) -> 0.0 % | V21: =SUM(V9:V20) ->  | W21: =SUM(W5:W20) -> 1 | X21: =SUM(X5:X20) -> 0 | Y21: =SUM(Y5:Y20) -> 0 | Z21: =SUM(Z5:Z20) -> 0 | AA21: =SUM(AA5:AA20) -> 2 | AB21: 25.0 % | AC21: =SUM(AC9:AC20) -> 4 | AD21: =SUM(AD5:AD20) -> 0 | AE21: 0 | AF21: 0 | AG21: 0 | AH21: 0 | AI21: 0
B22: Pesispörssi | D22: =SUM(F21:H21)+((I21-F21-G21)/3)+(E21/3)+(AD21*25)+(AE21*25)+(AF21*10)+(AG21*25)+(AH21*20)+(AI21*15) -> 17.3
B24: URA SUPERISSA | E24: OTT | F24: KUN | G24: LÖI | H24: TOI | I24: KL | K24: ka/L | L24: ka/T | M24: ka/KL | N24: KL-% | P24: ENSIMMÄISET RUNKOSARJASSA
B25: Runkosarja | E25: =PRODUCT(E21) -> 10 | F25: =PRODUCT(F21) -> 1 | G25: =PRODUCT(G21) -> 7 | H25: =PRODUCT(H21) -> 2 | I25: =PRODUCT(I21) -> 20 | K25: =PRODUCT((F25+G25)/E25) -> 0.80 | L25: =PRODUCT(H25/E25) -> 0.20 | M25: =PRODUCT(I25/E25) -> 2.00 | N25: =PRODUCT(N21) -> 40.8 % | O25: =PRODUCT(O21) -> 49.01960784 | P25: Ottelu | R25: 03.06. 2012 NJ - KiPa 0-2 (1-7, 1-4) | Z25: 1. ottelu | AC25: 18 v 4 kk 6 pv
B26: Ylempi loppusarja | P26: Lyöty | R26: 03.06. 2012 NJ - KiPa 0-2 (1-7, 1-4) | Z26: 1. ottelu | AC26: 18 v 4 kk 6 pv
B27: Alempi loppusarja | E27: =PRODUCT(W21) -> 1 | F27: =PRODUCT(X21) -> 0 | G27: =PRODUCT(Y21) -> 0 | H27: =PRODUCT(Z21) -> 0 | I27: =PRODUCT(AA21) -> 2 | K27: =PRODUCT((F27+G27)/E27) -> 0.00 | L27: =PRODUCT(H27/E27) -> 0.00 | M27: =PRODUCT(I27/E27) -> 2.00 | N27: 25.0 % | O27: =PRODUCT(I27/N27) -> 8 | P27: Tuotu | R27: 03.07. 2012 KPL - NJ 2-1 (5-6, 4-1, 2-1) | Z27: 4. ottelu | AC27: 18 v 5 kk 5 pv
B28: KAIKKI | E28: =SUM(E25:E27) -> 11 | F28: =SUM(F25:F27) -> 1 | G28: =SUM(G25:G27) -> 7 | H28: =SUM(H25:H27) -> 2 | I28: =SUM(I25:I27) -> 22 | K28: =PRODUCT((F28+G28)/E28) -> 0.73 | L28: =PRODUCT(H28/E28) -> 0.18 | M28: =PRODUCT(I28/E28) -> 2.00 | N28: =PRODUCT(I28/O28) -> 38.6 % | O28: =SUM(O25:O27) -> 57.01960784 | P28: Kunnari | R28: 03.07. 2012 KPL - NJ 2-1 (5-6, 4-1, 2-1) | Z28: 4. ottelu | AC28: 18 v 5 kk 5 pv
B30: Seurat | D30: VM Jun = Vaasan Mailan Juniorit (1993), kasvattajaseura
D31: VM = Vaasan Maila (1933)
D32: VäVi = Vähänkyrön Viesti (1938)
D33: NJ = Nurmon Jymy (1925)

Sheet MYP, MSS
B1: Kalle Kero | E1: 28.1.1994 Vaasa
B2: YKKÖSPESIS | E2: Runkosarja | L2: Runkosarja TOP-10 | Q2: Jatkosarjat | X2: SUOMENSARJA | AA2: Runkosarja | AH2: Runkosarja TOP-10 | AM2: Jatkosarjat
B3: Vuosi | C3: Sija | D3: Seura | E3: OTT | F3: KUN | G3: LÖI | H3: TOI | I3: KL | J3: KL-% | L3: LÖI | M3: TOI | N3: L+T | O3: KL | Q3: OTT | R3: KUN | S3: LÖI | T3: TOI | U3: KL | V3: KL-% | X3: Vuosi | Y3: Sija | Z3: Seura | AA3: OTT | AB3: KUN | AC3: LÖI | AD3: TOI | AE3: KL | AF3: KL-% | AH3: LÖI | AI3: TOI | AJ3: L+T | AK3: KL | AM3: OTT | AN3: KUN | AO3: LÖI | AP3: TOI | AQ3: KL | AR3: KL-%
X4: 2009 | Y4: 1. | Z4: VM | AA4: 12 | AB4: 1 | AC4: 8 | AD4: 14 | AE4: 31 | AF4: 58.5 % | AG4: 53 | AM4: 1 | AN4: 0 | AO4: 0 | AP4: 0 | AQ4: 1 | AR4: 33.3 % | AS4: 3
B5: 2010 | C5: 3. | D5: VM | E5: 5 | F5: 0 | G5: 1 | H5: 1 | I5: 11 | J5: 61.1 % | K5: 18 | X5: 2010 | Y5: 3. | Z5: VäVi | AA5: 8 | AB5: 1 | AC5: 11 | AD5: 6 | AE5: 37 | AF5: 63.8 % | AG5: 58 | AM5: 2 | AN5: 0 | AO5: 2 | AP5: 2 | AQ5: 5 | AR5: 45.5 % | AS5: 11
X6: 2011 | Y6: 4. | Z6: VM | AA6: 18 | AB6: 4 | AC6: 19 | AD6: 27 | AE6: 87 | AF6: 69.6 % | AG6: 125 | AM6: 2 | AN6: 0 | AO6: 2 | AP6: 0 | AQ6: 14 | AR6: 87.5 % | AS6: 16
X7: 2012 | Y7: 1. | Z7: VM | AA7: 10 | AB7: 1 | AC7: 11 | AD7: 21 | AE7: 67 | AF7: 77.0 % | AG7: 87 | AM7: 6 | AN7: 1 | AO7: 3 | AP7: 12 | AQ7: 40 | AR7: 66.7 % | AS7: 60
X8: 2013 | Y8: 2. | Z8: VM | AA8: 15 | AB8: 2 | AC8: 19 | AD8: 28 | AE8: 76 | AF8: 66.1 % | AG8: 115 | AM8: 5 | AN8: 0 | AO8: 3 | AP8: 1 | AQ8: 25 | AR8: 75.8 % | AS8: 33
X9: 2014 | Y9: 3. | Z9: VM | AA9: 19 | AB9: 2 | AC9: 34 | AD9: 17 | AE9: 83 | AF9: 61.5 % | AG9: 135 | AM9: 2 | AN9: 0 | AO9: 0 | AP9: 2 | AQ9: 8 | AR9: 66.7 % | AS9: 12
X10: 2015 | Y10: 2. | Z10: VM | AA10: 16 | AB10: 4 | AC10: 26 | AD10: 21 | AE10: 95 | AF10: 72.5 % | AG10: 131 | AH10: 7. | AJ10: 6. | AK10: 2. | AM10: 6 | AN10: 0 | AO10: 6 | AP10: 3 | AQ10: 28 | AR10: 62.2 % | AS10: 45
X11: 2016 | Y11: 1. | Z11: VäVi | AA11: 15 | AB11: 1 | AC11: 35 | AD11: 12 | AE11: 67 | AF11: 62.0 % | AG11: 108 | AH11: 7. | AJ11: 10. | AM11: 6 | AN11: 1 | AO11: 12 | AP11: 5 | AQ11: 28 | AR11: 66.7 % | AS11: 42
B12: 2017 | C12: 11. | D12: VäVi | E12: 22 | F12: 1 | G12: 17 | H12: 8 | I12: 59 | J12: 45.7 % | K12: 129 | Q12: 2 | R12: 0 | S12: 0 | T12: 0 | U12: 4 | V12: 30.8 % | W12: 13
X13: 2018 | Y13: 7. | Z13: VM | AA13: 10 | AB13: 0 | AC13: 18 | AD13: 7 | AE13: 50 | AF13: 64.1 % | AG13: =PRODUCT(AE13/AF13) -> 78
X15: 2022 | Y15: 3. | Z15: VM Jun | AA15: 14 | AB15: 0 | AC15: 18 | AD15: 7 | AE15: 65 | AF15: 63.1 % | AG15: 103 | AM15: 2 | AN15: 0 | AO15: 1 | AP15: 0 | AQ15: 5 | AR15: 45.5 % | AS15: 11
X16: 2023 | Y16: 6. | Z16: VM Jun | AA16: 12 | AB16: 0 | AC16: 16 | AD16: 4 | AE16: 42 | AF16: 59.2 % | AG16: 71
B17: YHTEENSÄ | E17: =SUM(E4:E16) -> 27 | F17: =SUM(F4:F16) -> 1 | G17: =SUM(G4:G16) -> 18 | H17: =SUM(H4:H16) -> 9 | I17: =SUM(I4:I16) -> 70 | J17: =PRODUCT(I17/K17) -> 47.6 % | K17: =SUM(K4:K16) -> 147 | Q17: =SUM(Q4:Q16) -> 2 | R17: =SUM(R4:R16) -> 0 | S17: =SUM(S4:S16) -> 0 | T17: =SUM(T4:T16) -> 0 | U17: =SUM(U4:U16) -> 4 | V17: =PRODUCT(U17/W17) -> 30.8 % | W17: =SUM(W4:W16) -> 13 | X17: YHTEENSÄ | AA17: =SUM(AA4:AA16) -> 149 | AB17: =SUM(AB4:AB16) -> 16 | AC17: =SUM(AC4:AC16) -> 215 | AD17: =SUM(AD4:AD16) -> 164 | AE17: =SUM(AE4:AE16) -> 700 | AF17: =PRODUCT(AE17/AG17) -> 65.8 % | AG17: =SUM(AG4:AG16) -> 1064.00312 | AM17: =SUM(AM4:AM16) -> 32 | AN17: =SUM(AN4:AN16) -> 2 | AO17: =SUM(AO4:AO16) -> 29 | AP17: =SUM(AP4:AP16) -> 25 | AQ17: =SUM(AQ4:AQ16) -> 154 | AR17: =PRODUCT(AQ17/AS17) -> 66.1 % | AS17: =SUM(AS4:AS16) -> 233
B19: KAIKKI OTTELUT | E19: OTT | F19: KUN | G19: LÖI | H19: TOI | I19: KL | J19: KL-% | L19: ka/L | M19: ka/T | N19: ka/l+t | O19: ka/kl | R19: Seurat | T19: VM Jun = Vaasan Mailan Juniorit (1993), kasvattajaseura
B20: SUPERPESIS | E20: 11 | F20: 1 | G20: 7 | H20: 2 | I20: 22 | J20: 38.6 % | K20: =PRODUCT(I20/J20) -> 56.99481865 | L20: =PRODUCT((F20+G20)/E20) -> 0.73 | M20: =PRODUCT(H20/E20) -> 0.18 | N20: =PRODUCT((F20+G20+H20)/E20) -> 0.91 | O20: =PRODUCT(I20/E20) -> 2.00 | T20: VM = Vaasan Maila (1933)
B21: YKKÖSPESIS | E21: =PRODUCT(E17+Q17) -> 29 | F21: =PRODUCT(F17+R17) -> 1 | G21: =PRODUCT(G17+S17) -> 18 | H21: =PRODUCT(H17+T17) -> 9 | I21: =PRODUCT(I17+U17) -> 74 | J21: =PRODUCT(I21/K21) -> 46.3 % | K21: =PRODUCT(K17+W17) -> 160 | L21: =PRODUCT((F21+G21)/E21) -> 0.66 | M21: =PRODUCT(H21/E21) -> 0.31 | N21: =PRODUCT((F21+G21+H21)/E21) -> 0.97 | O21: =PRODUCT(I21/E21) -> 2.55 | T21: VäVi = Vähänkyrön Viesti (1938)
B22: SUOMENSARJA | E22: =PRODUCT(AA17+AM17) -> 181 | F22: =PRODUCT(AB17+AN17) -> 18 | G22: =PRODUCT(AC17+AO17) -> 244 | H22: =PRODUCT(AD17+AP17) -> 189 | I22: =PRODUCT(AE17+AQ17) -> 854 | J22: =PRODUCT(I22/K22) -> 65.8 % | K22: =PRODUCT(AG17+AS17) -> 1297.00312 | L22: =PRODUCT((F22+G22)/E22) -> 1.45 | M22: =PRODUCT(H22/E22) -> 1.04 | N22: =PRODUCT((F22+G22+H22)/E22) -> 2.49 | O22: =PRODUCT(I22/E22) -> 4.72 | T22: NJ = Nurmon Jymy (1925)
B23: YHTEENSÄ | E23: =SUM(E20:E22) -> 221 | F23: =SUM(F20:F22) -> 20 | G23: 269 | H23: 200 | I23: 950 | J23: =PRODUCT(I23/K23) -> 62.7 % | K23: =SUM(K20:K22) -> 1513.997939 | L23: =PRODUCT((F23+G23)/E23) -> 1.31 | M23: =PRODUCT(H23/E23) -> 0.90 | N23: =PRODUCT((F23+G23+H23)/E23) -> 2.21 | O23: =PRODUCT(I23/E23) -> 4.30

Sheet Arvo-ottelut
B1: ITÄ - LÄNSI - KORTTI
B2: Kalle Kero | C2: 28.1.1994 Vaasa
B3: B-POJAT | C3: Itä - Länsi, tulos | D3: Joukkue | E3: Seura | G3: V | H3: T | I3: H | J3: Up. | K3: Lj. | L3: Palk. | M3: O | N3: K | O3: L | P3: T | Q3: KL | R3: 1 | S3: 2 | T3: 3 | U3: k | V3: KL-% | W3: Pelinjohtaja | X3: Yleisöä
B4: 20.07. 2012 Sotkamo | C4: 1-0 (1-1, 7-4) | D4: Länsi | E4: NJ | I4: 1 | K4: jok | M4: 1 | O4: 2 | Q4: 4/7 | T4: 2/2 | U4: 2/5 | V4: 57.1 % | W4: Jari Viitasalo | X4: 1358
B6: A-POJAT | C6: Itä - Länsi, tulos | D6: Joukkue | E6: Seura | G6: V | H6: T | I6: H | J6: Up. | K6: Lj. | L6: Palk. | M6: O | N6: K | O6: L | P6: T | Q6: KL | R6: 1 | S6: 2 | T6: 3 | U6: k | V6: KL-% | W6: Pelinjohtaja | X6: Yleisöä
B7: 20.07. 2012 Sotkamo | C7: 2-1 (0-2, 8-5, 1-0) | D7: Länsi | E7: VM | I7: 1 | K7: jok | M7: 1 | O7: 1 | Q7: 1/3 | U7: 1/3 | V7: 33.3 % | W7: Tero Lehtinen | X7: 2420
